[Event "Titled Tuesday Blitz August 08 Late 2023"]
[White "Suarez Pousa, Diego"]
[Black "Vaglio Munoz, Jaime"]
[WhiteFideId "2204509"]
[BlackFideId "6500145"]
[WhiteElo "2372"]
[BlackElo "2235"]
[Result "1/2-1/2"]
[Round "8"]
[TimeControl "180+1"]
[Date "2023.08.08"]
[WhiteClock "0:00:09"]
[BlackClock "0:00:48"]
[Board "124"]

1. e4 {[%clk 0:03:00]}  c5 {[%clk 0:03:00]} 2. Nc3 {[%clk 0:03:00]}  Qa5 {[%clk 0:03:00]} 3. Nf3 {[%clk 0:02:54]}  a6 {[%clk 0:03:00]} 4. d4 {[%clk 0:02:47]}  b5 {[%clk 0:02:59]} 5. dxc5 {[%clk 0:02:40]}  e6 {[%clk 0:02:59]} 6. Bd3 {[%clk 0:02:14]}  b4 {[%clk 0:03:00]} 7. Ne2 {[%clk 0:02:07]}  Bxc5 {[%clk 0:02:47]} 8. O-O {[%clk 0:02:05]}  Bb7 {[%clk 0:02:47]} 9. Bd2 {[%clk 0:01:56]}  Qb6 {[%clk 0:02:46]} 10. a3 {[%clk 0:01:49]}  a5 {[%clk 0:02:43]} 11. axb4 {[%clk 0:01:37]}  axb4 {[%clk 0:02:44]} 12. Rxa8 {[%clk 0:01:37]}  Bxa8 {[%clk 0:02:45]} 13. Ng3 {[%clk 0:01:36]}  Nf6 {[%clk 0:02:44]} 14. e5 {[%clk 0:01:33]}  Nd5 {[%clk 0:02:43]} 15. Ne4 {[%clk 0:01:31]}  Be7 {[%clk 0:02:41]} 16. Nfg5 {[%clk 0:01:26]}  h6 {[%clk 0:02:34]} 17. Qh5 {[%clk 0:01:25]}  g6 {[%clk 0:02:26]} 18. Qh3 {[%clk 0:01:24]}  Nc6 {[%clk 0:02:19]} 19. Nd6+ {[%clk 0:01:19]}  Bxd6 {[%clk 0:02:18]} 20. exd6 {[%clk 0:01:20]}  Ne5 {[%clk 0:02:16]} 21. Be4 {[%clk 0:01:15]}  Qxd6 {[%clk 0:02:11]} 22. Bf3 {[%clk 0:01:10]}  Nxf3+ {[%clk 0:02:05]} 23. Nxf3 {[%clk 0:01:06]}  Nf4 {[%clk 0:02:00]} 24. Bxf4 {[%clk 0:01:01]}  Qxf4 {[%clk 0:02:01]} 25. Ne1 {[%clk 0:00:55]}  O-O {[%clk 0:01:58]} 26. Nd3 {[%clk 0:00:55]}  Qc4 {[%clk 0:01:40]} 27. Qxh6 {[%clk 0:00:49]}  Qxc2 {[%clk 0:01:40]} 28. Qe3 {[%clk 0:00:38]}  Qc6 {[%clk 0:01:35]} 29. Qg3 {[%clk 0:00:35]}  Qe4 {[%clk 0:01:30]} 30. Re1 {[%clk 0:00:33]}  Qd4 {[%clk 0:01:25]} 31. h4 {[%clk 0:00:32]}  Be4 {[%clk 0:01:22]} 32. Nf4 {[%clk 0:00:29]}  Bf5 {[%clk 0:01:17]} 33. b3 {[%clk 0:00:27]}  e5 {[%clk 0:01:16]} 34. Nh5 {[%clk 0:00:20]}  d6 {[%clk 0:01:11]} 35. Kh2 {[%clk 0:00:16]}  Qc3 {[%clk 0:01:10]} 36. Re3 {[%clk 0:00:15]}  Qc8 {[%clk 0:01:06]} 37. Nf6+ {[%clk 0:00:15]}  Kg7 {[%clk 0:01:06]} 38. Nd5 {[%clk 0:00:15]}  Rh8 {[%clk 0:01:05]} 39. f4 {[%clk 0:00:14]}  Qd8 {[%clk 0:01:03]} 40. fxe5 {[%clk 0:00:12]}  Qxh4+ {[%clk 0:01:03]} 41. Qxh4 {[%clk 0:00:12]}  Rxh4+ {[%clk 0:01:03]} 42. Kg1 {[%clk 0:00:13]}  dxe5 {[%clk 0:01:03]} 43. Rxe5 {[%clk 0:00:13]}  Rd4 {[%clk 0:01:01]} 44. Ne3 {[%clk 0:00:12]}  Be4 {[%clk 0:01:01]} 45. Rb5 {[%clk 0:00:11]}  f5 {[%clk 0:01:00]} 46. Nc4 {[%clk 0:00:10]}  Bc2 {[%clk 0:00:59]} 47. Rxb4 {[%clk 0:00:10]}  Bxb3 {[%clk 0:00:58]} 48. Rb7+ {[%clk 0:00:09]}  Kh6 {[%clk 0:00:56]} 49. Ne5 {[%clk 0:00:09]}  Bd5 {[%clk 0:00:55]} 50. Rb6 {[%clk 0:00:08]}  Rd1+ {[%clk 0:00:53]} 51. Kh2 {[%clk 0:00:08]}  Rd2 {[%clk 0:00:50]} 52. Rxg6+ {[%clk 0:00:09]}  Kh7 {[%clk 0:00:50]} 53. Rg5 {[%clk 0:00:09]}  Be4 {[%clk 0:00:50]} 54. Nf7 {[%clk 0:00:09]}  f4 {[%clk 0:00:48]} 55. Kh3 {[%clk 0:00:09]}  f3 {[%clk 0:00:48]} 56. gxf3 {[%clk 0:00:09]}  Bxf3 {[%clk 0:00:48]} 57. Kh4 {[%clk 0:00:09]}  Rd4+ {[%clk 0:00:48]} 58. Kg3 {[%clk 0:00:09]}  Rg4+ {[%clk 0:00:47]} 59. Rxg4 {[%clk 0:00:09]}  Bxg4 {[%clk 0:00:48]} 1/2-1/2


[Site "https://www.chess.com"]

[Event "Titled Tuesday Blitz August 08 Late 2023"]
[White "Cmorales2001"]
[Black "Clawitter, Craig"]
[BlackFideId "2023105"]
[WhiteElo "2349"]
[BlackElo "2205"]
[Result "1/2-1/2"]
[Round "8"]
[TimeControl "180+1"]
[Date "2023.08.08"]
[WhiteClock "0:00:20"]
[BlackClock "0:00:10"]
[Board "126"]

1. e4 {[%clk 0:03:00]}  e6 {[%clk 0:02:58]} 2. Nf3 {[%clk 0:03:01]}  d5 {[%clk 0:02:59]} 3. e5 {[%clk 0:02:57]}  c5 {[%clk 0:02:58]} 4. c3 {[%clk 0:02:58]}  Nc6 {[%clk 0:02:58]} 5. Na3 {[%clk 0:02:58]}  Nh6 {[%clk 0:02:57]} 6. Nc2 {[%clk 0:02:59]}  Nf5 {[%clk 0:02:57]} 7. d4 {[%clk 0:02:58]}  cxd4 {[%clk 0:02:56]} 8. cxd4 {[%clk 0:02:57]}  Qa5+ {[%clk 0:02:46]} 9. Bd2 {[%clk 0:02:56]}  Qb6 {[%clk 0:02:47]} 10. Bc3 {[%clk 0:02:56]}  Be7 {[%clk 0:02:44]} 11. Bd3 {[%clk 0:02:55]}  Bd7 {[%clk 0:02:38]} 12. O-O {[%clk 0:02:49]}  O-O {[%clk 0:02:36]} 13. Ne3 {[%clk 0:02:45]}  Nxe3 {[%clk 0:02:31]} 14. fxe3 {[%clk 0:02:45]}  f6 {[%clk 0:02:32]} 15. exf6 {[%clk 0:02:28]}  Bxf6 {[%clk 0:02:28]} 16. Qc2 {[%clk 0:01:59]}  h6 {[%clk 0:01:45]} 17. a3 {[%clk 0:01:48]}  e5 {[%clk 0:01:44]} 18. dxe5 {[%clk 0:01:44]}  Nxe5 {[%clk 0:01:44]} 19. Bh7+ {[%clk 0:01:17]}  Kh8 {[%clk 0:01:41]} 20. Nd4 {[%clk 0:01:07]}  Rac8 {[%clk 0:01:32]} 21. Bf5 {[%clk 0:01:05]}  Bxf5 {[%clk 0:01:26]} 22. Qxf5 {[%clk 0:01:04]}  Nc4 {[%clk 0:01:19]} 23. Qd3 {[%clk 0:00:57]}  Nxb2 {[%clk 0:01:06]} 24. Bxb2 {[%clk 0:00:55]}  Qxb2 {[%clk 0:01:06]} 25. Rab1 {[%clk 0:00:56]}  Qa2 {[%clk 0:00:55]} 26. Rxb7 {[%clk 0:00:55]}  Qc4 {[%clk 0:00:46]} 27. Qd1 {[%clk 0:00:52]}  Bxd4 {[%clk 0:00:34]} 28. Rxf8+ {[%clk 0:00:51]}  Rxf8 {[%clk 0:00:35]} 29. exd4 {[%clk 0:00:52]}  Rf4 {[%clk 0:00:18]} 30. Rb8+ {[%clk 0:00:49]}  Kh7 {[%clk 0:00:18]} 31. Qb1+ {[%clk 0:00:49]}  Re4 {[%clk 0:00:17]} 32. Rb4 {[%clk 0:00:49]}  Qe2 {[%clk 0:00:13]} 33. h3 {[%clk 0:00:48]}  Qe1+ {[%clk 0:00:11]} 34. Qxe1 {[%clk 0:00:45]}  Rxe1+ {[%clk 0:00:12]} 35. Kh2 {[%clk 0:00:43]}  Ra1 {[%clk 0:00:13]} 36. Ra4 {[%clk 0:00:44]}  Rd1 {[%clk 0:00:12]} 37. Kg3 {[%clk 0:00:42]}  Kg6 {[%clk 0:00:12]} 38. Kf3 {[%clk 0:00:43]}  Rd3+ {[%clk 0:00:12]} 39. Ke2 {[%clk 0:00:42]}  Rg3 {[%clk 0:00:12]} 40. Rxa7 {[%clk 0:00:40]}  Rxg2+ {[%clk 0:00:12]} 41. Kf3 {[%clk 0:00:40]}  Ra2 {[%clk 0:00:11]} 42. Ra5 {[%clk 0:00:40]}  Kf6 {[%clk 0:00:10]} 43. h4 {[%clk 0:00:37]}  g6 {[%clk 0:00:10]} 44. a4 {[%clk 0:00:34]}  g5 {[%clk 0:00:10]} 45. hxg5+ {[%clk 0:00:33]}  hxg5 {[%clk 0:00:11]} 46. Rxd5 {[%clk 0:00:31]}  Rxa4 {[%clk 0:00:11]} 47. Kg4 {[%clk 0:00:31]}  Rb4 {[%clk 0:00:09]} 48. Rd6+ {[%clk 0:00:24]}  Ke7 {[%clk 0:00:09]} 49. Rd5 {[%clk 0:00:24]}  Ke6 {[%clk 0:00:09]} 50. Re5+ {[%clk 0:00:23]}  Kf6 {[%clk 0:00:09]} 51. Rf5+ {[%clk 0:00:22]}  Ke6 {[%clk 0:00:09]} 52. Re5+ {[%clk 0:00:20]}  Kf6 {[%clk 0:00:09]} 53. Rf5+ {[%clk 0:00:20]}  Ke6 {[%clk 0:00:10]} 54. Rxg5 {[%clk 0:00:20]}  Rxd4+ {[%clk 0:00:10]} 55. Kh5 {[%clk 0:00:21]}  Rd5 {[%clk 0:00:10]} 56. Rxd5 {[%clk 0:00:20]}  Kxd5 {[%clk 0:00:10]} 1/2-1/2


[Site "https://www.chess.com"]

[Event "Titled Tuesday Blitz August 08 Late 2023"]
[White "Fernandez Bustamante, Leancy B."]
[Black "Beulen, Marcel"]
[WhiteFideId "3523870"]
[BlackFideId "1001450"]
[WhiteElo "2199"]
[BlackElo "2347"]
[Result "1-0"]
[Round "8"]
[TimeControl "180+1"]
[Date "2023.08.08"]
[WhiteClock "0:00:08"]
[BlackClock "0:00:00"]
[Board "127"]

1. e4 {[%clk 0:02:59]}  d5 {[%clk 0:03:00]} 2. exd5 {[%clk 0:02:58]}  Qxd5 {[%clk 0:03:01]} 3. d4 {[%clk 0:02:58]}  e5 {[%clk 0:03:00]} 4. dxe5 {[%clk 0:02:55]}  Qxd1+ {[%clk 0:02:59]} 5. Kxd1 {[%clk 0:02:56]}  Nc6 {[%clk 0:02:59]} 6. Bb5 {[%clk 0:02:54]}  Bg4+ {[%clk 0:02:57]} 7. Ke1 {[%clk 0:02:49]}  O-O-O {[%clk 0:02:51]} 8. f3 {[%clk 0:02:42]}  Bf5 {[%clk 0:02:37]} 9. Bxc6 {[%clk 0:02:32]}  bxc6 {[%clk 0:02:38]} 10. Nc3 {[%clk 0:02:32]}  Bc5 {[%clk 0:02:32]} 11. Bd2 {[%clk 0:02:18]}  f6 {[%clk 0:02:22]} 12. Nge2 {[%clk 0:02:09]}  fxe5 {[%clk 0:02:18]} 13. Ng3 {[%clk 0:02:07]}  Bg6 {[%clk 0:02:15]} 14. Nce4 {[%clk 0:02:04]}  Bb6 {[%clk 0:02:13]} 15. c4 {[%clk 0:02:00]}  Bd4 {[%clk 0:02:12]} 16. Bc3 {[%clk 0:01:50]}  c5 {[%clk 0:02:10]} 17. Ke2 {[%clk 0:01:45]}  Nf6 {[%clk 0:02:09]} 18. Rac1 {[%clk 0:01:37]}  Rhe8 {[%clk 0:01:51]} 19. Bxd4 {[%clk 0:01:29]}  cxd4 {[%clk 0:01:50]} 20. Kd3 {[%clk 0:01:26]}  Nxe4 {[%clk 0:01:27]} 21. fxe4 {[%clk 0:01:22]}  Rf8 {[%clk 0:01:27]} 22. Rhf1 {[%clk 0:01:21]}  Kd7 {[%clk 0:01:25]} 23. Rxf8 {[%clk 0:01:19]}  Rxf8 {[%clk 0:01:26]} 24. Rf1 {[%clk 0:01:19]}  Rb8 {[%clk 0:01:18]} 25. Rb1 {[%clk 0:01:07]}  a5 {[%clk 0:01:11]} 26. b3 {[%clk 0:01:05]}  c5 {[%clk 0:01:09]} 27. h4 {[%clk 0:00:55]}  h6 {[%clk 0:01:05]} 28. Nf5 {[%clk 0:00:51]}  Bxf5 {[%clk 0:00:30]} 29. exf5 {[%clk 0:00:50]}  Ke7 {[%clk 0:00:30]} 30. g4 {[%clk 0:00:47]}  Kf6 {[%clk 0:00:28]} 31. Ke4 {[%clk 0:00:42]}  a4 {[%clk 0:00:29]} 32. g5+ {[%clk 0:00:32]}  hxg5 {[%clk 0:00:28]} 33. hxg5+ {[%clk 0:00:33]}  Kxg5 {[%clk 0:00:24]} 34. Rg1+ {[%clk 0:00:34]}  Kf6 {[%clk 0:00:22]} 35. Rg6+ {[%clk 0:00:33]}  Kf7 {[%clk 0:00:22]} 36. bxa4 {[%clk 0:00:27]}  Rb4 {[%clk 0:00:15]} 37. Ra6 {[%clk 0:00:21]}  Rxc4 {[%clk 0:00:14]} 38. Kxe5 {[%clk 0:00:21]}  d3 {[%clk 0:00:10]} 39. Ra7+ {[%clk 0:00:21]}  Kg8 {[%clk 0:00:10]} 40. f6 {[%clk 0:00:17]}  gxf6+ {[%clk 0:00:07]} 41. Kxf6 {[%clk 0:00:14]}  d2 {[%clk 0:00:05]} 42. Kg6 {[%clk 0:00:10]}  Rg4+ {[%clk 0:00:03]} 43. Kf5 {[%clk 0:00:09]}  d1=Q {[%clk 0:00:04]} 44. Ra8+ {[%clk 0:00:06]}  Kh7 {[%clk 0:00:03]} 45. a5 {[%clk 0:00:07]}  Ra4 {[%clk 0:00:00]} 46. Ke6 {[%clk 0:00:08]} 1-0


[Site "https://www.chess.com"]

[Event "Titled Tuesday Blitz August 08 Late 2023"]
[White "Gerbelli Neto, Eduardo"]
[Black "Powell, Paul"]
[WhiteFideId "2103281"]
[BlackFideId "2005840"]
[WhiteElo "2318"]
[BlackElo "2186"]
[Result "1-0"]
[Round "8"]
[TimeControl "180+1"]
[Date "2023.08.08"]
[WhiteClock "0:02:31"]
[BlackClock "0:00:12"]
[Board "129"]

1. e4 {[%clk 0:03:00]}  c5 {[%clk 0:02:59]} 2. Nc3 {[%clk 0:03:00]}  Nc6 {[%clk 0:02:57]} 3. f4 {[%clk 0:03:01]}  Rb8 {[%clk 0:02:57]} 4. Nf3 {[%clk 0:02:59]}  g6 {[%clk 0:02:56]} 5. Bc4 {[%clk 0:02:58]}  Bg7 {[%clk 0:02:56]} 6. O-O {[%clk 0:02:56]}  e6 {[%clk 0:02:56]} 7. d3 {[%clk 0:02:56]}  Nge7 {[%clk 0:02:56]} 8. Qe1 {[%clk 0:02:50]}  O-O {[%clk 0:02:55]} 9. Qh4 {[%clk 0:02:47]}  d5 {[%clk 0:02:50]} 10. Bb3 {[%clk 0:02:47]}  Nd4 {[%clk 0:02:45]} 11. f5 {[%clk 0:02:47]}  exf5 {[%clk 0:02:37]} 12. Bg5 {[%clk 0:02:44]}  f6 {[%clk 0:02:08]} 13. Nxd5 {[%clk 0:02:43]}  Kh8 {[%clk 0:02:05]} 14. Nxf6 {[%clk 0:02:40]}  h5 {[%clk 0:01:42]} 15. Nxh5 {[%clk 0:02:34]}  Nxf3+ {[%clk 0:01:25]} 16. Rxf3 {[%clk 0:02:34]}  Bd4+ {[%clk 0:00:12]} 17. Kh1 {[%clk 0:02:31]} 1-0


[Site "https://www.chess.com"]

[Event "Titled Tuesday Blitz August 08 Late 2023"]
[White "Shapiro, Daniel"]
[Black "Tharushi, T H D Niklesha"]
[WhiteFideId "2001780"]
[BlackFideId "9918264"]
[WhiteElo "2317"]
[BlackElo "2116"]
[Result "1-0"]
[Round "8"]
[TimeControl "180+1"]
[Date "2023.08.08"]
[WhiteClock "0:00:14"]
[BlackClock "0:00:18"]
[Board "130"]

1. d4 {[%clk 0:03:00]}  Nf6 {[%clk 0:02:59]} 2. c4 {[%clk 0:03:00]}  e6 {[%clk 0:03:00]} 3. g3 {[%clk 0:03:00]}  Bb4+ {[%clk 0:03:00]} 4. Bd2 {[%clk 0:02:59]}  Qe7 {[%clk 0:03:00]} 5. Bg2 {[%clk 0:02:56]}  O-O {[%clk 0:03:01]} 6. Nf3 {[%clk 0:02:56]}  Bxd2+ {[%clk 0:02:58]} 7. Qxd2 {[%clk 0:02:56]}  d6 {[%clk 0:02:59]} 8. Nc3 {[%clk 0:02:51]}  e5 {[%clk 0:02:58]} 9. O-O {[%clk 0:02:48]}  c6 {[%clk 0:02:53]} 10. Rfe1 {[%clk 0:02:44]}  e4 {[%clk 0:02:36]} 11. Ng5 {[%clk 0:02:39]}  d5 {[%clk 0:02:37]} 12. cxd5 {[%clk 0:02:21]}  cxd5 {[%clk 0:02:38]} 13. Rac1 {[%clk 0:01:58]}  Nc6 {[%clk 0:02:30]} 14. Nh3 {[%clk 0:01:46]}  Bf5 {[%clk 0:02:21]} 15. Nf4 {[%clk 0:01:43]}  Rfd8 {[%clk 0:02:19]} 16. e3 {[%clk 0:01:42]}  g5 {[%clk 0:02:16]} 17. Nfe2 {[%clk 0:01:41]}  Nb4 {[%clk 0:02:16]} 18. Nb5 {[%clk 0:01:20]}  Nd3 {[%clk 0:02:00]} 19. Rc7 {[%clk 0:01:06]}  Rd7 {[%clk 0:01:58]} 20. Rec1 {[%clk 0:01:06]}  Nxc1 {[%clk 0:01:57]} 21. Rxc1 {[%clk 0:01:06]}  a6 {[%clk 0:01:55]} 22. Nbc3 {[%clk 0:01:07]}  Qb4 {[%clk 0:01:49]} 23. b3 {[%clk 0:01:02]}  Rc8 {[%clk 0:01:42]} 24. Qb2 {[%clk 0:00:59]}  Rdc7 {[%clk 0:01:40]} 25. a3 {[%clk 0:00:59]}  Qb6 {[%clk 0:01:30]} 26. Rb1 {[%clk 0:00:53]}  Bg4 {[%clk 0:01:21]} 27. Na4 {[%clk 0:00:51]}  Qb5 {[%clk 0:01:19]} 28. Nec3 {[%clk 0:00:50]}  Qd3 {[%clk 0:01:19]} 29. Bf1 {[%clk 0:00:50]}  Qxb1 {[%clk 0:01:03]} 30. Qxb1 {[%clk 0:00:22]}  Rxc3 {[%clk 0:00:57]} 31. Nxc3 {[%clk 0:00:22]}  Rxc3 {[%clk 0:00:58]} 32. h3 {[%clk 0:00:19]}  Bf3 {[%clk 0:00:52]} 33. Qb2 {[%clk 0:00:19]}  Rc6 {[%clk 0:00:51]} 34. Bg2 {[%clk 0:00:19]}  Be2 {[%clk 0:00:33]} 35. Qxe2 {[%clk 0:00:15]}  Rb6 {[%clk 0:00:31]} 36. b4 {[%clk 0:00:15]}  Rc6 {[%clk 0:00:31]} 37. Qd2 {[%clk 0:00:15]}  Nd7 {[%clk 0:00:31]} 38. Bf1 {[%clk 0:00:15]}  Nb6 {[%clk 0:00:31]} 39. Be2 {[%clk 0:00:15]}  Nc4 {[%clk 0:00:31]} 40. Bxc4 {[%clk 0:00:15]}  Rxc4 {[%clk 0:00:32]} 41. Qb2 {[%clk 0:00:14]}  h6 {[%clk 0:00:30]} 42. a4 {[%clk 0:00:13]}  Kf8 {[%clk 0:00:27]} 43. Kf1 {[%clk 0:00:13]}  Ke7 {[%clk 0:00:28]} 44. Ke2 {[%clk 0:00:13]}  Kd6 {[%clk 0:00:27]} 45. Kd2 {[%clk 0:00:14]}  Ke6 {[%clk 0:00:26]} 46. Qb3 {[%clk 0:00:14]}  f5 {[%clk 0:00:25]} 47. b5 {[%clk 0:00:15]}  a5 {[%clk 0:00:21]} 48. b6 {[%clk 0:00:15]}  Rb4 {[%clk 0:00:20]} 49. Qc3 {[%clk 0:00:15]}  Rxb6 {[%clk 0:00:19]} 50. Qxa5 {[%clk 0:00:14]}  Ra6 {[%clk 0:00:20]} 51. Qb5 {[%clk 0:00:14]}  Ra7 {[%clk 0:00:16]} 52. Qb6+ {[%clk 0:00:13]}  Kf7 {[%clk 0:00:16]} 53. Qxa7 {[%clk 0:00:14]}  Kg6 {[%clk 0:00:17]} 54. Qxb7 {[%clk 0:00:14]}  Kh5 {[%clk 0:00:18]} 55. Qf7# {[%clk 0:00:14]} 1-0


[Site "https://www.chess.com"]

[Event "Titled Tuesday Blitz August 08 Late 2023"]
[White "Fernandez Hernandez, Gerardo"]
[Black "Liu, Casper"]
[WhiteFideId "2207400"]
[BlackFideId "1454153"]
[WhiteElo "2227"]
[BlackElo "2441"]
[Result "0-1"]
[Round "8"]
[TimeControl "180+1"]
[Date "2023.08.08"]
[WhiteClock "0:00:36"]
[BlackClock "0:01:41"]
[Board "133"]

1. e4 {[%clk 0:03:00]}  c6 {[%clk 0:02:58]} 2. d4 {[%clk 0:02:57]}  d5 {[%clk 0:02:59]} 3. e5 {[%clk 0:02:55]}  Bf5 {[%clk 0:02:58]} 4. Nd2 {[%clk 0:02:54]}  e6 {[%clk 0:02:58]} 5. Nb3 {[%clk 0:02:54]}  Nd7 {[%clk 0:02:55]} 6. Nf3 {[%clk 0:02:54]}  Ne7 {[%clk 0:02:50]} 7. Be2 {[%clk 0:02:50]}  Ng6 {[%clk 0:02:49]} 8. Be3 {[%clk 0:02:35]}  Be7 {[%clk 0:02:44]} 9. O-O {[%clk 0:02:23]}  O-O {[%clk 0:02:40]} 10. Rc1 {[%clk 0:02:23]}  Rc8 {[%clk 0:02:38]} 11. c4 {[%clk 0:02:22]}  dxc4 {[%clk 0:02:34]} 12. Bxc4 {[%clk 0:02:08]}  b5 {[%clk 0:02:33]} 13. Bd3 {[%clk 0:02:04]}  Bxd3 {[%clk 0:02:31]} 14. Qxd3 {[%clk 0:02:05]}  Ndxe5 {[%clk 0:02:27]} 15. Qe4 {[%clk 0:01:57]}  f5 {[%clk 0:02:20]} 16. Qb1 {[%clk 0:01:46]}  Nxf3+ {[%clk 0:02:20]} 17. gxf3 {[%clk 0:01:47]}  Bd6 {[%clk 0:02:19]} 18. Nc5 {[%clk 0:01:37]}  Qh4 {[%clk 0:02:16]} 19. Rfe1 {[%clk 0:01:22]}  Qh3 {[%clk 0:02:02]} 20. f4 {[%clk 0:01:17]}  Nxf4 {[%clk 0:02:01]} 21. Bxf4 {[%clk 0:01:01]}  Bxf4 {[%clk 0:02:02]} 22. Rc2 {[%clk 0:00:50]}  Rf6 {[%clk 0:01:43]} 23. Rxe6 {[%clk 0:00:41]}  Qxh2+ {[%clk 0:01:38]} 24. Kf1 {[%clk 0:00:40]}  Qh1+ {[%clk 0:01:39]} 25. Ke2 {[%clk 0:00:39]}  Rxe6+ {[%clk 0:01:40]} 26. Nxe6 {[%clk 0:00:36]}  Qxb1 {[%clk 0:01:41]} 0-1


[Site "https://www.chess.com"]

[Event "Titled Tuesday Blitz August 08 Late 2023"]
[White "Osmonbekov, Talaibek"]
[Black "elcala"]
[WhiteFideId "2017253"]
[WhiteElo "2164"]
[BlackElo "1733"]
[Result "1-0"]
[Round "8"]
[TimeControl "180+1"]
[Date "2023.08.08"]
[WhiteClock "0:01:49"]
[BlackClock "0:01:15"]
[Board "138"]

1. d4 {[%clk 0:03:00]}  d5 {[%clk 0:03:00]} 2. Nc3 {[%clk 0:03:00]}  c6 {[%clk 0:03:00]} 3. Bf4 {[%clk 0:03:00]}  Nf6 {[%clk 0:02:57]} 4. e3 {[%clk 0:03:01]}  e6 {[%clk 0:02:58]} 5. Nf3 {[%clk 0:03:00]}  Bd6 {[%clk 0:02:55]} 6. Bd3 {[%clk 0:03:00]}  Bxf4 {[%clk 0:02:54]} 7. exf4 {[%clk 0:03:00]}  Nbd7 {[%clk 0:02:54]} 8. O-O {[%clk 0:03:00]}  h6 {[%clk 0:02:46]} 9. Re1 {[%clk 0:03:00]}  O-O {[%clk 0:02:45]} 10. Ne5 {[%clk 0:02:59]}  Qb6 {[%clk 0:02:33]} 11. a3 {[%clk 0:02:53]}  Qxb2 {[%clk 0:02:19]} 12. Na4 {[%clk 0:02:51]}  Qxd4 {[%clk 0:01:56]} 13. Bh7+ {[%clk 0:02:48]}  Nxh7 {[%clk 0:01:57]} 14. Qxd4 {[%clk 0:02:48]}  Nxe5 {[%clk 0:01:58]} 15. fxe5 {[%clk 0:02:47]}  b5 {[%clk 0:01:57]} 16. Nc5 {[%clk 0:02:46]}  Ng5 {[%clk 0:01:54]} 17. h4 {[%clk 0:02:42]}  Nh7 {[%clk 0:01:53]} 18. Re3 {[%clk 0:02:34]}  a5 {[%clk 0:01:50]} 19. Rg3 {[%clk 0:02:31]}  Re8 {[%clk 0:01:38]} 20. Qg4 {[%clk 0:02:24]}  g6 {[%clk 0:01:37]} 21. Qf4 {[%clk 0:02:22]}  h5 {[%clk 0:01:35]} 22. Qh6 {[%clk 0:02:19]}  Kh8 {[%clk 0:01:31]} 23. Rf3 {[%clk 0:02:11]}  Re7 {[%clk 0:01:26]} 24. Rd1 {[%clk 0:02:03]}  Bb7 {[%clk 0:01:25]} 25. Rd4 {[%clk 0:01:58]}  b4 {[%clk 0:01:21]} 26. axb4 {[%clk 0:01:56]}  axb4 {[%clk 0:01:22]} 27. Rxb4 {[%clk 0:01:56]}  Ra1+ {[%clk 0:01:22]} 28. Kh2 {[%clk 0:01:56]}  Bc8 {[%clk 0:01:22]} 29. Rb8 {[%clk 0:01:55]}  Rc7 {[%clk 0:01:21]} 30. Rxf7 {[%clk 0:01:50]}  Rxf7 {[%clk 0:01:15]} 31. Rxc8+ {[%clk 0:01:49]} 1-0


[Site "https://www.chess.com"]

[Event "Titled Tuesday Blitz August 08 Late 2023"]
[White "Iturrizaga Bonelli, Eduardo"]
[Black "Naroditsky, Daniel"]
[WhiteFideId "3901211"]
[BlackFideId "2026961"]
[WhiteElo "2991"]
[BlackElo "3203"]
[Result "0-1"]
[Round "9"]
[TimeControl "180+1"]
[Date "2023.08.08"]
[WhiteClock "0:00:05"]
[BlackClock "0:00:08"]
[Board "1"]

1. d4 {[%clk 0:03:00]}  Nf6 {[%clk 0:03:00]} 2. Nf3 {[%clk 0:03:01]}  g6 {[%clk 0:03:00]} 3. c4 {[%clk 0:03:01]}  Bg7 {[%clk 0:03:00]} 4. Nc3 {[%clk 0:03:01]}  O-O {[%clk 0:03:01]} 5. g3 {[%clk 0:03:02]}  d6 {[%clk 0:03:02]} 6. Bg2 {[%clk 0:03:02]}  Nbd7 {[%clk 0:03:03]} 7. O-O {[%clk 0:03:02]}  e5 {[%clk 0:03:03]} 8. Qc2 {[%clk 0:03:03]}  exd4 {[%clk 0:03:03]} 9. Nxd4 {[%clk 0:03:03]}  Nb6 {[%clk 0:03:04]} 10. b3 {[%clk 0:03:02]}  c5 {[%clk 0:03:05]} 11. Ndb5 {[%clk 0:02:43]}  a6 {[%clk 0:03:03]} 12. Na3 {[%clk 0:02:43]}  Bf5 {[%clk 0:03:03]} 13. Qd1 {[%clk 0:02:36]}  d5 {[%clk 0:02:51]} 14. Bg5 {[%clk 0:02:31]}  h6 {[%clk 0:02:39]} 15. Bxf6 {[%clk 0:02:27]}  Bxf6 {[%clk 0:02:24]} 16. Rc1 {[%clk 0:02:22]}  Bxc3 {[%clk 0:02:22]} 17. Rxc3 {[%clk 0:02:21]}  d4 {[%clk 0:02:23]} 18. Rc1 {[%clk 0:02:20]}  Qe7 {[%clk 0:02:24]} 19. Nc2 {[%clk 0:02:07]}  Rad8 {[%clk 0:02:18]} 20. Ne1 {[%clk 0:02:04]}  Rfe8 {[%clk 0:02:18]} 21. Bf3 {[%clk 0:02:04]}  Nd7 {[%clk 0:02:01]} 22. Nd3 {[%clk 0:01:52]}  Ne5 {[%clk 0:02:02]} 23. Nxe5 {[%clk 0:01:48]}  Qxe5 {[%clk 0:02:03]} 24. Qd2 {[%clk 0:01:46]}  h5 {[%clk 0:02:00]} 25. Rfe1 {[%clk 0:01:34]}  b6 {[%clk 0:02:00]} 26. h4 {[%clk 0:01:29]}  a5 {[%clk 0:01:59]} 27. Bc6 {[%clk 0:01:21]}  Bd7 {[%clk 0:01:42]} 28. Bd5 {[%clk 0:01:11]}  Be6 {[%clk 0:01:39]} 29. Bc6 {[%clk 0:01:11]}  Rf8 {[%clk 0:01:33]} 30. e4 {[%clk 0:01:05]}  dxe3 {[%clk 0:01:33]} 31. Qxe3 {[%clk 0:01:05]}  Qxe3 {[%clk 0:01:33]} 32. Rxe3 {[%clk 0:01:05]}  Rd2 {[%clk 0:01:34]} 33. a4 {[%clk 0:01:03]}  Rfd8 {[%clk 0:01:34]} 34. Rce1 {[%clk 0:00:59]}  Kg7 {[%clk 0:01:22]} 35. Kg2 {[%clk 0:00:44]}  Rb2 {[%clk 0:01:16]} 36. Rf3 {[%clk 0:00:36]}  Rbd2 {[%clk 0:00:47]} 37. Ree3 {[%clk 0:00:34]}  R8d6 {[%clk 0:00:29]} 38. Be4 {[%clk 0:00:33]}  Bg4 {[%clk 0:00:20]} 39. Rf4 {[%clk 0:00:32]}  Re6 {[%clk 0:00:21]} 40. Rc3 {[%clk 0:00:22]}  f6 {[%clk 0:00:14]} 41. Bf3 {[%clk 0:00:21]}  f5 {[%clk 0:00:06]} 42. Kf1 {[%clk 0:00:09]}  Kf6 {[%clk 0:00:04]} 43. Bxg4 {[%clk 0:00:06]}  hxg4 {[%clk 0:00:04]} 44. f3 {[%clk 0:00:06]}  Rd1+ {[%clk 0:00:05]} 45. Kf2 {[%clk 0:00:06]}  Rd2+ {[%clk 0:00:05]} 46. Kf1 {[%clk 0:00:07]}  gxf3 {[%clk 0:00:02]} 47. Rcxf3 {[%clk 0:00:08]}  Rd1+ {[%clk 0:00:02]} 48. Kf2 {[%clk 0:00:07]}  Rd2+ {[%clk 0:00:02]} 49. Kf1 {[%clk 0:00:07]}  Ree2 {[%clk 0:00:02]} 50. g4 {[%clk 0:00:03]}  Rh2 {[%clk 0:00:02]} 51. Kg1 {[%clk 0:00:03]}  Rhg2+ {[%clk 0:00:01]} 52. Kf1 {[%clk 0:00:04]}  Rh2 {[%clk 0:00:02]} 53. Kg1 {[%clk 0:00:04]}  Rxh4 {[%clk 0:00:03]} 54. gxf5 {[%clk 0:00:02]}  Rxf4 {[%clk 0:00:03]} 55. Rxf4 {[%clk 0:00:03]}  gxf5 {[%clk 0:00:04]} 56. Kf1 {[%clk 0:00:03]}  Rd3 {[%clk 0:00:04]} 57. Rh4 {[%clk 0:00:03]}  Rxb3 {[%clk 0:00:05]} 58. Ke2 {[%clk 0:00:04]}  Ke5 {[%clk 0:00:05]} 59. Kd2 {[%clk 0:00:04]}  Rb4 {[%clk 0:00:05]} 60. Kd3 {[%clk 0:00:03]}  Rxa4 {[%clk 0:00:05]} 61. Rh6 {[%clk 0:00:03]}  Rb4 {[%clk 0:00:05]} 62. Kc3 {[%clk 0:00:04]}  a4 {[%clk 0:00:05]} 63. Rh8 {[%clk 0:00:04]}  Rb3+ {[%clk 0:00:06]} 64. Kc2 {[%clk 0:00:05]}  Kd4 {[%clk 0:00:07]} 65. Rh4+ {[%clk 0:00:05]}  Ke3 {[%clk 0:00:07]} 66. Rh3+ {[%clk 0:00:05]}  Ke4 {[%clk 0:00:07]} 67. Rh8 {[%clk 0:00:05]}  f4 {[%clk 0:00:08]} 68. Re8+ {[%clk 0:00:05]}  Kd4 {[%clk 0:00:08]} 0-1


[Site "https://www.chess.com"]